Cogmind - Beta 15 @@@ ROGUE MODE // 2025.08.04 @ 17:02:57 Player: the Result: Destroyed by H-77 Assassin with Coil Gun Performance ------------- Evolutions (7) 3500 Regions Visited (16) 3200 Robots Destroyed (80) 400 Value Destroyed (2102) 2102 Prototype IDs (24) 480 Alien Tech Used (16) 3200 Bonus (1288) 1288 TOTAL SCORE: 14170 Bonus ------- Met Zhirov 300 Scanned by Researcher 500 Pursued by Intercept 500 Friendly Fire -12 Cogmind --------- Core Integrity 0/1300 Matter 272/425 Energy 100/100 System Corruption 13% Temperature Cool (0) Movement Core (50) Location -3/Section 7 Parts ------- > --- POWER (3) -------- (None) > --- PROPULSION (8) --- (None) > --- UTILITY (11) ----- Experimental Optical Array Advanced Signal Interpreter Hacking Suite > --- WEAPON (2) ------- (None) > --- INVENTORY (7) ---- Subatomic Replicator Fusion Bomb Launcher Peak State ------------ > --- POWER ------------ Micro Nuclear Core Micro Antimatter Reactor > --- PROPULSION ------- Improved Cesium-ion Thruster Cooled VTOL Module Field Propulsion Array Improved Diametric Drive Improved Diametric Drive Improved Diametric Drive > --- UTILITY ---------- Advanced Power Amplifier Structural Scanner Experimental Optical Array Advanced Sensor Array Advanced Signal Interpreter Advanced Reaction Control System Hacking Suite Hacking Suite Hacking Suite Advanced System Shield > --- WEAPON ----------- Sigix Broadsword > --- INVENTORY -------- Transdimensional Reconstructor Subatomic Replicator Core Cannon Fusion Bomb Launcher [Rating: 145] Favorites ----------- Power Enhanced Nuclear Core Engine Light Ion Engine Power Core Enhanced Nuclear Core Reactor Micro Antimatter Reactor Propulsion Cooled VTOL Module Treads Spiked Heavy Treads Leg Aluminum Leg Hover Unit Cooled Gravmag System Flight Unit Cooled VTOL Module Utility Hacking Suite Device Structural Scanner Storage Small Storage Unit Processor Advanced Signal Interpreter Hackware Hacking Suite Protection Light Armor Plating Artifact Phase Redirector Weapon Greatsword Energy Gun Sigix Sheargun Energy Cannon Matter Neutralizer Ballistic Gun Assault Rifle Launcher Fusion Bomb Launcher Special Weapon Enhanced Flamer Impact Weapon Maul Slashing Weapon Greatsword Piercing Weapon Spear Build | -11 -10 -10 -9 -8 -7 -7 -7 -5 -4 -4 -4 -4 -3 -3 -3 -3 ------- Run | Yrd Mat Min Mat Mat Fac Sto Rec Fac Fac Upp Upp Zhi Pro Res Qua Sec Slots Evolved 14 | . . . 2 2 2 . . 4 2 . . . . 2 . . Power 1 | . . . . . . . . 1 . . . . . . . . Propulsion 5 | . . . 1 . . . . 1 2 . . . . 1 . . Utility 8 | . . . 1 2 2 . . 2 . . . . . 1 . . Weapon . | . . . . . . . . . . . . . . . . . Parts Attached 106 | 7 3 4 22 13 14 3 2 4 2 2 . 5 2 11 7 5 Power 11 | 1 . 1 3 1 2 1 . 1 . . . . . . 1 . Engine 6 | 1 . 1 3 1 . . . . . . . . . . . . Core 4 | . . . . . 2 1 . 1 . . . . . . . . Reactor 1 | . . . . . . . . . . . . . . . 1 . Propulsion 24 | 2 1 2 4 3 3 1 . 1 1 . . 1 1 3 1 . Treads 1 | . . . . . . . . . . . . . 1 . . . Leg 6 | 2 1 2 1 . . . . . . . . . . . . . Wheel . | . . . . . . . . . . . . . . . . . Hover 1 | . . . . . . . . . . . . 1 . . . . Flight 16 | . . . 3 3 3 1 . 1 1 . . . . 3 1 . Utility 40 | 2 . . 5 5 7 . 2 1 1 1 . 4 . 7 3 2 Device 17 | 1 . . 3 1 2 . . . 1 1 . 2 . 5 1 . Storage 2 | 1 . . . . . . 1 . . . . . . . . . Processor 8 | . . . 1 2 2 . . 1 . . . . . 1 . 1 Hackware 9 | . . . . 2 3 . 1 . . . . 1 . 1 . 1 Protection 2 | . . . 1 . . . . . . . . 1 . . . . Artifact 2 | . . . . . . . . . . . . . . . 2 . Weapon 31 | 2 2 1 10 4 2 1 . 1 . 1 . . 1 1 2 3 Energy Gun 5 | . . . 2 1 . . . . . . . . . . . 2 Energy Cannon 4 | . . . 1 . . . . 1 . . . . . . 1 1 Ballistic Gun 5 | 2 1 . 2 . . . . . . . . . . . . . Ballistic Cannon . | . . . . . . . . . . . . . . . . . Launcher 3 | . . . 1 1 . . . . . . . . . 1 . . Special Weapon 3 | . 1 1 . . . . . . . . . . 1 . . . Impact Weapon 5 | . . . 4 1 . . . . . . . . . . . . Slashing Weapon 4 | . . . . 1 . 1 . . . 1 . . . . 1 . Piercing Weapon 2 | . . . . . 2 . . . . . . . . . . . Special Melee Weapon . | . . . . . . . . . . . . . . . . . Unidentified Prototypes 28 | . . . 4 2 1 1 . . . . . 4 . 1 3 12 Parts Lost 36 | . . . 9 . 1 . . . . 2 . . . 3 1 20 Power 5 | . . . 2 . . . . . . . . . . . 1 2 Propulsion 10 | . . . 4 . . . . . . . . . . . . 6 Utility 14 | . . . 2 . 1 . . . . 1 . . . 2 . 8 Weapon 7 | . . . 1 . . . . . . 1 . . . 1 . 4 Highest Loss Streak 16 | . . . 3 . 1 . . . . 2 . . . 3 1 16 To Critical Strikes . | . . . . . . . . . . . . . . . . . Average Backups 5 | 3 6 7 6 4 4 5 5 4 4 4 4 4 4 4 3 3 Power . | . 1 . . . . 1 1 . . . . . . . . . Propulsion 1 | 1 1 2 1 . 1 1 1 . 1 2 2 1 1 . . . Utility 1 | . 2 2 1 2 1 1 1 1 1 1 1 . 1 1 . . Weapon 2 | . 2 2 2 1 1 2 2 2 2 1 1 1 1 1 1 1 Tool/Special . | . . . . . . . . . . . . . . . . . Unused Backups 21 | . 2 1 5 1 5 1 . 2 . . . . . 3 . 1 Power 1 | . . . . . . 1 . . . . . . . . . . Propulsion 8 | . 2 . 5 . 1 . . . . . . . . . . . Utility 8 | . . 1 . 1 3 . . 2 . . . . . 1 . . Weapon 3 | . . . . . 1 . . . . . . . . 2 . . Tool/Special 1 | . . . . . . . . . . . . . . . . 1 Average Slot Usage (%) 90 | . 98 100 89 99 99 96 91 87 83 82 85 83 83 83 91 78 Engine 4 | . 14 14 10 9 2 . . . . . . . . . . . Core 4 | . . . . . 4 7 7 5 10 10 10 10 10 9 8 2 Leg 4 | . 27 28 14 . . . . . . . . . . . . . Flight 20 | . . . 15 27 22 23 23 22 20 21 21 20 20 23 27 25 Device 15 | . 14 14 14 18 15 15 7 16 15 14 15 14 15 18 18 13 Storage 2 | . 14 14 6 . . . 1 . . . . . . . . . Processor 9 | . . . 4 14 15 15 15 11 10 10 10 10 10 9 9 8 Hackware 15 | . . . . 12 21 23 27 23 21 21 21 21 21 17 19 16 Ballistic Gun 2 | . 26 16 2 . . . . . . . . . . . . . Impact Weapon 3 | . . . 16 8 4 . . . . . . . . . . . Slashing Weapon 3 | . . . . 7 6 7 7 4 5 4 2 4 4 1 1 2 Peak Build Rating 145 | 7 7 9 19 38 48 50 52 68 84 88 88 96 93 120 145 145 Average Rating 59 | 6 6 8 13 33 44 49 50 60 83 82 87 90 92 103 131 130 On Entrance 59 | . 7 7 9 19 38 48 50 51 68 84 88 88 93 93 120 145 Naked Turns . | . . . . . . . . . . . . . . . . . Heaviest Build 48 | 12 12 15 20 15 16 15 18 22 22 22 25 22 23 35 48 32 Greatest Support 49 | 20 20 20 30 18 20 16 16 23 38 42 38 38 38 48 49 49 Greatest Overweight (x) 7 | 1 3 . 1 . . . 1 . . . . 7 . . . . Average Overweight (x) . | . . . . . . . . . . . . . . . . . Largest Inventory Capacity 8 | 8 8 8 8 5 5 5 8 8 5 5 5 5 5 5 5 7 Average Capacity 5 | 7 8 8 6 5 5 5 5 5 5 5 5 5 5 5 5 6 Most Carried 8 | 6 8 8 8 5 5 5 7 6 5 5 5 5 5 5 5 7 Average Carried 5 | 3 6 7 6 4 4 5 5 4 4 4 4 4 4 4 4 4 Final Capacity 8 | 8 8 8 5 5 5 5 8 5 5 5 5 5 5 5 5 7 Final Carried 8 | 6 7 8 5 5 5 5 7 5 5 5 5 5 5 5 5 2 Class Distribution -------------------- 50% | Hacker-Scout 22% | Mutant 11% | Hacker-Ninja 6% | Scout 6% | Hacker-Mutant Dominant Class ---------------- Mutant | -10/Materials Mutant | -10/Mines Mutant | -9/Materials Scout | -8/Materials Hacker-Scout | -7/Factory Hacker-Scout | -7/Storage Hacker-Scout | -7/Recycling Hacker-Scout | -5/Factory Hacker-Scout | -4/Factory Hacker-Scout | -4/Upper Caves Hacker-Scout | -4/Upper Caves Hacker-Ninja | -4/Zhirov Hacker-Ninja | -3/Proximity Caves Hacker-Scout | -3/Research Hacker-Scout | -3/Quarantine Hacker-Scout | -3/Section 7 Resources | -11 -10 -10 -9 -8 -7 -7 -7 -5 -4 -4 -4 -4 -3 -3 -3 -3 ----------- Run | Yrd Mat Min Mat Mat Fac Sto Rec Fac Fac Upp Upp Zhi Pro Res Qua Sec Matter Collected 2766 | 277 198 117 360 171 537 126 60 100 . 80 111 110 54 111 251 103 Remotely . | . . . . . . . . . . . . . . . . . Salvage Created 3551 | 132 242 87 747 268 455 . 456 34 . . 47 351 . 291 273 168 Parts 154 | 17 9 4 29 15 28 . 10 2 . . 1 7 . 10 15 7 Haulers Intercepted 12 | . 1 . 3 2 5 . . . . . . . . 1 . . Recyclers Shooed 3 | . 1 1 1 . . . . . . . . . . . . . Parts Field Recycled . | . . . . . . . . . . . . . . . . . Retrieved Matter . | . . . . . . . . . . . . . . . . . Parts Self-Destructed 10 | . . . . . . . . . . . 3 7 . . . . Prevented . | . . . . . . . . . . . . . . . . . Kills | -11 -10 -10 -9 -8 -7 -7 -7 -5 -4 -4 -4 -4 -3 -3 -3 -3 ------- Run | Yrd Mat Min Mat Mat Fac Sto Rec Fac Fac Upp Upp Zhi Pro Res Qua Sec Combat Hostiles Destroyed 37 | . 2 1 16 6 1 . 1 . . . 3 . . 2 2 3 Melee 16 | . . . 7 1 1 . 1 . . . 1 . . 2 2 1 Guns 10 | . 2 . 6 . . . . . . . . . . . . 2 Cannons 1 | . . 1 . . . . . . . . . . . . . . AOE 6 | . . . . 4 . . . . . . 2 . . . . . Classes Destroyed 12 | 2 3 . 3 1 1 . 1 1 . . . . . . . . Builder 1 | . . . . . 1 . . . . . . . . . . . Tunneler 5 | 5 . . . . . . . . . . . . . . . . Hauler 12 | . 1 . 3 2 5 . . . . . . . . 1 . . Recycler 10 | 1 1 1 1 . . . 5 . . . . . . . 1 . Mechanic 1 | . . . . . . . . 1 . . . . . . . . Operator 7 | . . . 3 1 3 . . . . . . . . . . . Watcher 7 | . 1 . 1 1 3 . . . . . . . . 1 . . Swarmer 16 | . . . 9 4 . . . . . . 3 . . . . . Grunt 9 | . 2 1 4 1 1 . . . . . . . . . . . Sentry 3 | . . . 3 . . . . . . . . . . . . . Hunter 1 | . . . . 1 . . . . . . . . . . . . Programmer 8 | . . . . . . . 1 . . . . . . 2 2 3 Best Kill Streak 5 | 3 3 1 4 4 5 . 2 1 . . 3 . . 1 2 1 Combat Bots Only 4 | . 1 1 4 4 1 . 1 . . . 3 . . 1 2 1 Max Kills in Single Turn 2 | 1 1 1 2 1 1 . 1 1 . . 2 . . 1 1 1 Gunslinging 1 | . . . 1 . . . . . . . . . . . . . Exploded 2 | . . . . 1 . . . . . . 2 . . . . . Melee 1 | . . . 1 1 1 . 1 . . . 1 . . 1 1 1 Uniques/NPCs Destroyed . | . . . . . . . . . . . . . . . . . Combat | -11 -10 -10 -9 -8 -7 -7 -7 -5 -4 -4 -4 -4 -3 -3 -3 -3 -------- Run | Yrd Mat Min Mat Mat Fac Sto Rec Fac Fac Upp Upp Zhi Pro Res Qua Sec Hostile Shots Fired 518 | . 5 3 134 30 10 9 . 2 . 43 1 . . 14 46 221 Missed 172 | . 2 1 32 15 3 7 . 2 . 22 1 . . 4 28 55 Hits 346 | . 3 2 102 15 7 2 . . . 21 . . . 10 18 166 Melee 1 | . . . . . . . . . . . . . . . . 1 Projectile 345 | . 3 2 102 15 7 2 . . . 21 . . . 10 18 165 AOE 3 | . . . . . . . . . . . . . . . . 3 Critical Strikes 13 | . . . 1 1 . . . . . 2 . . . . . 9 Part Disruptions 1 | . . . . . . . . . . . . . . . . 1 Damage Taken 5916 | . 32 21 1093 195 109 23 . . . 403 . . . 324 344 3372 Core 1470 | . . 10 140 73 60 . . . . 126 . . . . 48 1013 Absorbed by Shields . | . . . . . . . . . . . . . . . . . Regen/Repaired (Parts) 880 | . . . 22 . 17 . . 23 . . . . . . 263 555 Core Remaining (%) 89 | 100 . 96 65 86 . . 91 100 . . . . 89 . . . Volleys Fired 116 | 13 31 8 20 10 3 . . 6 . . 4 . 2 1 1 17 Largest 2 | 2 2 2 2 1 1 . . 1 . . 1 . 1 1 1 2 Hottest 200 | 40 100 100 100 36 36 . . 105 . . 36 . 100 52 113 200 Shots Fired 192 | 26 60 12 35 10 3 . . 6 . . 4 . 2 1 1 32 Gun 150 | 26 58 5 29 . . . . . . . . . . . . 32 Cannon 7 | . . . . . . . . 6 . . . . . . 1 . Launcher 20 | . . . 1 10 3 . . . . . 4 . 1 1 . . Special 15 | . 2 7 5 . . . . . . . . . 1 . . . Kinetic 112 | 26 58 5 23 . . . . . . . . . . . . . Thermal 24 | . 2 7 7 . . . . 6 . . . . 1 . 1 . Explosive 20 | . . . 1 10 3 . . . . . 4 . 1 1 . . Electromagnetic 4 | . . . 4 . . . . . . . . . . . . . Slashing 32 | . . . . . . . . . . . . . . . . 32 Robot Hit Streak 7 | 3 7 4 6 2 . . . . . . . . . . . 2 Robot Miss Streak 4 | 4 3 2 2 1 . . . . . . . . . . . 2 Penetration Max . | . . . . . . . . . . . . . . . . . Secondary Targets 2 | . . . 2 . . . . . . . . . . . . . Max Gunslinging Chain 1 | . . . 1 . . . . . . . . . . . . . Shots Hit Robots 211 | 13 36 6 70 10 15 . 10 2 1 3 1 7 . 13 7 17 Core Hits 83 | 7 11 6 19 10 8 . 2 1 . . 4 5 . 3 3 4 Critical Kills 4 | . . . 4 . . . . . . . . . . . . . Critical Parts Destroyed 7 | . . . 6 . 1 . . . . . . . . . . . Critical Strikes 17 | . . . 10 . 1 . . . . . . . . 3 . 3 Smash 11 | . . . 10 . 1 . . . . . . . . . . . Sever 5 | . . . . . . . . . . . . . . 2 . 3 Impale 1 | . . . . . . . . . . . . . . 1 . . Melee Attacks 427 | . . . 84 81 79 6 17 16 16 8 5 7 1 42 32 33 Impact 194 | . . . 84 72 38 . . . . . . . . . . . Slashing 156 | . . . . 9 15 3 17 13 16 7 4 2 1 18 18 33 Piercing 77 | . . . . . 26 3 . 3 . 1 1 5 . 24 14 . Sneak Attacks 30 | . . . 6 4 8 . 6 1 . . . . . 3 2 . Combat Hostiles 3 | . . . . 1 . . 1 . . . . . . 1 . . Follow-up Attacks 13 | . . . 10 2 1 . . . . . . . . . . . Damage Inflicted 9497 | 138 360 86 2467 769 1029 . 1028 175 78 167 186 628 . 804 758 824 Guns 1186 | 138 360 52 320 . . . . . . . . . . . . 316 Cannons . | . . . . . . . . . . . . . . . . . Explosions 398 | . . . . 265 . . . . . . 133 . . . . . Melee 7824 | . . . 2092 504 1029 . 1028 175 78 167 53 628 . 804 758 508 Ramming . | . . . . . . . . . . . . . . . . . Kinetic 778 | 138 360 52 228 . . . . . . . . . . . . . Thermal 115 | . . 34 81 . . . . . . . . . . . . . Explosive 398 | . . . . 265 . . . . . . 133 . . . . . Electromagnetic 66 | . . . 66 . . . . . . . . . . . . . Impact 3339 | . . . 2092 470 777 . . . . . . . . . . . Slashing 4018 | . . . . 34 127 . 1028 175 78 167 . 212 . 690 683 824 Piercing 783 | . . . . . 125 . . . . . 53 416 . 114 75 . Highest Corruption 13 | . . . 1 . . . . . . 1 1 1 1 4 1 13 Average Corruption 2 | . . . 1 . . . . . . 1 1 1 1 2 1 4 Corruption Purged 4 | . . . . . . . . . . . . . . 4 . . Corruption Blocked . | . . . . . . . . . . . . . . . . . Effects 26 | . . . 3 . . . . . . . 1 1 4 3 . 14 Message Errors 5 | . . . 1 . . . . . . . . 1 . . . 3 Matter Fused 4 | . . . . . . . . . . . 1 . . 2 . 1 Heat Flow Errors 6 | . . . 1 . . . . . . . . . 2 1 . 2 Energy Discharges 6 | . . . 1 . . . . . . . . . 2 . . 3 Data Loss (minor) 1 | . . . . . . . . . . . . . . . . 1 Data Loss (major) 2 | . . . . . . . . . . . . . . . . 2 Misfires 1 | . . . . . . . . . . . . . . . . 1 Weapon Failures 1 | . . . . . . . . . . . . . . . . 1 Overload Shots . | . . . . . . . . . . . . . . . . . Overflow Damage 2396 | . . . 508 167 499 . 558 75 8 . . 33 . 162 257 129 Projectiles . | . . . . . . . . . . . . . . . . . Explosions . | . . . . . . . . . . . . . . . . . Melee 2396 | . . . 508 167 499 . 558 75 8 . . 33 . 162 257 129 Knockbacks 5 | . . . 2 2 1 . . . . . . . . . . . Impact 5 | . . . 2 2 1 . . . . . . . . . . . Kinetic . | . . . . . . . . . . . . . . . . . Secondary . | . . . . . . . . . . . . . . . . . Self-Inflicted Damage . | . . . . . . . . . . . . . . . . . Shots . | . . . . . . . . . . . . . . . . . Rammed . | . . . . . . . . . . . . . . . . . Targets Rammed . | . . . . . . . . . . . . . . . . . Kicked . | . . . . . . . . . . . . . . . . . Crushed . | . . . . . . . . . . . . . . . . . Highest Temperature 370 | . 20 100 212 17 12 . . 220 . 87 7 . 205 96 98 370 Average Temperature 111 | . 9 40 111 9 5 . . 111 . 36 4 . 86 36 52 154 Received Heat Transfer 507 | . 18 12 246 72 63 12 . . . . . . . . 42 42 Effects 5 | . . . . . . . . 3 . . . . . . . 2 Energy Bleed 1 | . . . . . . . . . . . . . . . . 1 Interference 3 | . . . . . . . . 3 . . . . . . . . Matter Decay 1 | . . . . . . . . . . . . . . . . 1 Siege Activations . | . . . . . . . . . . . . . . . . . Martial Activations . | . . . . . . . . . . . . . . . . . Shielding Activations . | . . . . . . . . . . . . . . . . . Robots Disrupted . | . . . . . . . . . . . . . . . . . Combat Hostiles . | . . . . . . . . . . . . . . . . . Robots Corrupted 13 | . . . 6 3 4 . . . . . . . . . . . Combat Hostiles 4 | . . . 3 1 . . . . . . . . . . . . Parts Fried 19 | . . . 7 5 7 . . . . . . . . . . . Impact Corruptions 40 | . . . 24 6 10 . . . . . . . . . . . Robots Melted . | . . . . . . . . . . . . . . . . . Combat Hostiles . | . . . . . . . . . . . . . . . . . Parts Melted 1 | . . . 1 . . . . . . . . . . . . . Heat Transferred 714 | . . 240 474 . . . . . . . . . . . . . Parts Sabotaged . | . . . . . . . . . . . . . . . . . Parts Stolen . | . . . . . . . . . . . . . . . . . Parts Stripped . | . . . . . . . . . . . . . . . . . Power Chain Reactions 1 | . . . 1 . . . . . . . . . . . . . Alert | -11 -10 -10 -9 -8 -7 -7 -7 -5 -4 -4 -4 -4 -3 -3 -3 -3 ------- Run | Yrd Mat Min Mat Mat Fac Sto Rec Fac Fac Upp Upp Zhi Pro Res Qua Sec Maximum Alert Level 2 | . . . 1 1 . . . . . . . . . . 1 2 Low Security (%) 72 | 100 100 100 67 8 100 100 100 100 100 . . . . 100 78 . Level 1 26 | . . . 32 91 . . . . . . . . . . 21 89 Level 2 1 | . . . . . . . . . . . . . . . . 10 Level 3 . | . . . . . . . . . . . . . . . . . Level 4 . | . . . . . . . . . . . . . . . . . Level 5 . | . . . . . . . . . . . . . . . . . High Security . | . . . . . . . . . . . . . . . . . Max Security . | . . . . . . . . . . . . . . . . . Peak Influence 501 | 10 35 30 323 388 114 55 24 77 21 . . . . 58 394 501 Initial 210 | . . 7 . 142 114 22 17 . 2 . . . . . 27 210 Average 109 | 1 7 3 133 261 64 40 4 16 4 . . . . 12 165 325 Influence Increases 3905 | 30 91 35 765 628 478 63 107 144 73 30 60 15 . 228 537 621 Destroy 0b10 Robot/C 740 | . 40 20 320 120 20 . 20 . . . 60 . . 40 40 60 Destroy 0b10 Robot/NC 260 | 30 15 5 55 30 60 . 30 5 . . . 15 . 10 5 . Destroy Leader 188 | . 4 10 78 26 26 . . . . . . . . 14 10 20 Successful Hack 284 | . . . 6 34 100 . 38 17 . . . . . . 71 18 Select Force Hacks 30 | . . . . 30 . . . . . . . . . . . . Disable Machine 405 | . . . 60 30 30 30 . 15 15 . . . . 15 90 120 Destroy Structure 423 | . 2 . 21 133 62 3 4 32 28 . . . . 74 36 28 Partial Spotted 345 | . . . 105 15 45 30 . . 15 . . . . 45 . 90 Lose Combat Pursuer 1230 | . 30 . 120 210 135 . 15 75 15 30 . . . 30 285 285 Influence Decreases 3718 | 30 72 54 428 713 681 67 152 139 75 18 45 45 . 178 213 808 Entered New Map 626 | . . 12 . 195 138 27 28 . 3 2 4 30 . . 23 164 Time Decay 2397 | 30 72 42 358 368 444 40 124 139 72 16 41 15 . 162 180 294 Search Patrol Dispatched 150 | . . . . . . . . . . . . . . . . 150 Lost Part 300 | . . . 70 . 10 . . . . . . . . 10 10 200 Lost Ally 16 | . . . . . 10 . . . . . . . . 6 . . Purge Threat 229 | . . . . 150 79 . . . . . . . . . . . Squads Dispatched 38 | . 1 . 4 3 10 1 . 2 1 . . . . 3 4 9 Investigation 11 | . . . 2 1 5 . . . . . . . . . 2 1 Extermination 10 | . . . . . 3 . . 1 . . . . . 2 2 2 Reinforcement 14 | . 1 . 2 2 2 1 . 1 1 . . . . 1 . 3 Assault . | . . . . . . . . . . . . . . . . . Garrison . | . . . . . . . . . . . . . . . . . Intercept 3 | . . . . . . . . . . . . . . . . 3 Searches Triggered 1 | . . . . . . . . . . . . . . . . 1 Construction Impeded . | . . . . . . . . . . . . . . . . . Haulers Reinforced 1 | . . . . . . . . . . . . . . 1 . . Active Scanning Responses . | . . . . . . . . . . . . . . . . . Cargo Convoy Interrupts . | . . . . . . . . . . . . . . . . . Stealth | -11 -10 -10 -9 -8 -7 -7 -7 -5 -4 -4 -4 -4 -3 -3 -3 -3 --------- Run | Yrd Mat Min Mat Mat Fac Sto Rec Fac Fac Upp Upp Zhi Pro Res Qua Sec Distress Signals 23 | . 3 . 5 4 1 . . . 2 . . . . 1 3 4 Communications Jammed . | . . . . . . . . . . . . . . . . . Distress Signals . | . . . . . . . . . . . . . . . . . Times Spotted 194 | . 5 2 28 34 20 2 2 4 8 4 1 . . 5 25 54 Peak Tracking Total 16 | . 4 2 5 10 6 1 1 5 7 3 1 . . 4 16 13 Tactical Retreats 40 | . 1 . 5 8 6 . 1 1 1 2 . . . 1 5 9 Traps | -11 -10 -10 -9 -8 -7 -7 -7 -5 -4 -4 -4 -4 -3 -3 -3 -3 ------- Run | Yrd Mat Min Mat Mat Fac Sto Rec Fac Fac Upp Upp Zhi Pro Res Qua Sec Traps Triggered 8 | . 3 . 1 . . . . . . . . . . 2 2 . Indirectly . | . . . . . . . . . . . . . . . . . Trap Hack Attempts . | . . . . . . . . . . . . . . . . . Triggered . | . . . . . . . . . . . . . . . . . Disarmed 1 | . . . . 1 . . . . . . . . . . . . Reprogrammed . | . . . . . . . . . . . . . . . . . Reused . | . . . . . . . . . . . . . . . . . Traps Extracted . | . . . . . . . . . . . . . . . . . Installed . | . . . . . . . . . . . . . . . . . Triggered . | . . . . . . . . . . . . . . . . . Machines | -11 -10 -10 -9 -8 -7 -7 -7 -5 -4 -4 -4 -4 -3 -3 -3 -3 ---------- Run | Yrd Mat Min Mat Mat Fac Sto Rec Fac Fac Upp Upp Zhi Pro Res Qua Sec Machines Disabled 27 | . . . 4 2 2 2 . 1 1 . . . . 1 6 8 Max in Single Turn 1 | . . . 1 1 1 1 . 1 1 . . . . 1 1 1 Machines Repaired . | . . . . . . . . . . . . . . . . . Machines Dismantled . | . . . . . . . . . . . . . . . . . Machines Sabotaged . | . . . . . . . . . . . . . . . . . Overloaded Fab Kills . | . . . . . . . . . . . . . . . . . Hacking | -11 -10 -10 -9 -8 -7 -7 -7 -5 -4 -4 -4 -4 -3 -3 -3 -3 --------- Run | Yrd Mat Min Mat Mat Fac Sto Rec Fac Fac Upp Upp Zhi Pro Res Qua Sec Machines Accessed 100 | . 1 . 7 10 22 2 10 12 2 . . 6 . 7 11 10 Terminals 61 | . . . 5 7 14 2 5 3 2 . . . . 4 9 10 Fabricators 4 | . . . . . 4 . . . . . . . . . . . Repair Stations 6 | . . . 1 . 1 . . 2 . . . . . . 2 . Recycling Units 17 | . 1 . 1 1 1 . 5 5 . . . . . 3 . . Scanalyzers 4 | . . . . 1 1 . . 2 . . . . . . . . Garrison Access 2 | . . . . 1 1 . . . . . . . . . . . Total Hacks 274 | . 1 . 14 45 67 2 30 27 5 . . 19 . 15 32 17 Successful 148 | . . . 4 29 25 2 15 19 2 . . 19 . 10 15 8 Failed 126 | . 1 . 10 16 42 . 15 8 3 . . . . 5 17 9 Catastrophic 19 | . 1 . 1 . 10 . 2 . 1 . . . . . 2 2 Database Lockouts . | . . . . . . . . . . . . . . . . . Manual 96 | . . . 5 20 22 2 20 8 5 . . . . 4 10 . Terminals 180 | . . . 10 36 43 2 22 10 5 . . . . 10 25 17 Fabricators 10 | . . . . . 10 . . . . . . . . . . . Repair Stations 19 | . . . 1 . 7 . . 4 . . . . . . 7 . Recycling Units 27 | . 1 . 3 1 2 . 8 7 . . . . . 5 . . Scanalyzers 15 | . . . . 6 3 . . 6 . . . . . . . . Garrison Access 4 | . . . . 2 2 . . . . . . . . . . . Terminal Hacks 91 | . . . 2 19 10 2 6 5 2 . . 19 . 6 12 8 Record 11 | . . . . . . . . . . . . 7 . 1 3 . Part Schematic 16 | . . . . . 3 . 5 2 . . . 4 . . 2 . Robot Analysis 6 | . . . . . . . 1 . . . . 4 . . . 1 Prototype ID Bank 4 | . . . . . . . . . . . . 4 . . . . Open Door 8 | . . . . . . 2 . . . . . . . 1 . 5 Level Access Points 3 | . . . . 1 1 . . . . . . . . . 1 . Branch Access Points 2 | . . . . 1 . . . . . . . . . 1 . . Emergency Access Points 1 | . . . . 1 . . . . . . . . . . . . Terminal Index 6 | . . . . 1 1 . . 1 1 . . . . 1 1 . Fabricator Index 3 | . . . . . 1 . . 1 1 . . . . . . . Repair Station Index 1 | . . . . . . . . . . . . . . . 1 . Scanalyzer Index 1 | . . . . 1 . . . . . . . . . . . . Alert Level 5 | . . . 1 3 . . . . . . . . . 1 . . Unreport Threat 2 | . . . . 1 1 . . . . . . . . . . . Locate Traps 6 | . . . . 3 1 . . 1 . . . . . 1 . . Disarm Traps 1 | . . . . 1 . . . . . . . . . . . . Investigation Status 1 | . . . . . 1 . . . . . . . . . . . Reinforcement Status 1 | . . . . 1 . . . . . . . . . . . . Recall Investigation 1 | . . . . . 1 . . . . . . . . . . . Recall Reinforcements 2 | . . . . 2 . . . . . . . . . . . . Hauler Manifests 1 | . . . . 1 . . . . . . . . . . . . Registered Components 1 | . . . . . . . . . . . . . . . 1 . Zone Layout 7 | . . . 1 2 . . . . . . . . . . 3 1 Activate Exoskeleton 1 | . . . . . . . . . . . . . . . . 1 Fabricator Hacks 6 | . . . . . 6 . . . . . . . . . . . Network Status 1 | . . . . . 1 . . . . . . . . . . . Load Schematic 3 | . . . . . 3 . . . . . . . . . . . Build 2 | . . . . . 2 . . . . . . . . . . . Repair Station Hacks 10 | . . . . . 3 . . 4 . . . . . . 3 . Scan Component 6 | . . . . . 2 . . 2 . . . . . . 2 . Repair 4 | . . . . . 1 . . 2 . . . . . . 1 . Recycling Unit Hacks 13 | . . . . . 1 . 5 4 . . . . . 3 . . Retrieve Components 13 | . . . . . 1 . 5 4 . . . . . 3 . . Scanalyzer 14 | . . . . 6 2 . . 6 . . . . . . . . Insert Component 6 | . . . . 3 1 . . 2 . . . . . . . . Analyze 8 | . . . . 3 1 . . 4 . . . . . . . . Garrison Access Hacks . | . . . . . . . . . . . . . . . . . Unauthorized Hacks 14 | . . . 2 4 3 . 4 . . . . . . 1 . . Terminals 10 | . . . 1 3 3 . 2 . . . . . . 1 . . Assimilate 4 | . . . . 1 2 . . . . . . . . 1 . . Botnet 6 | . . . 1 2 1 . 2 . . . . . . . . . Fabricators . | . . . . . . . . . . . . . . . . . Repair Stations 1 | . . . 1 . . . . . . . . . . . . . Patch 1 | . . . 1 . . . . . . . . . . . . . Recycling Units 3 | . . . . 1 . . 2 . . . . . . . . . Mask 2 | . . . . . . . 2 . . . . . . . . . Tunnel 1 | . . . . 1 . . . . . . . . . . . . Scanalyzers . | . . . . . . . . . . . . . . . . . Garrison Access . | . . . . . . . . . . . . . . . . . Data Cores Recovered 2 | . . . . . 2 . . . . . . . . . . . Used . | . . . . . . . . . . . . . . . . . Hacking Detections 78 | . 1 . 6 9 21 2 6 10 2 . . . . 6 10 5 Full Trace Events 8 | . . . 1 . 5 . . . . . . . . . 1 1 Feedback Events 3 | . . . 1 . 1 . . . . . . . . . . 1 Corruption 1 | . . . 1 . . . . . . . . . . . . . Hackware Fried 2 | . . . . . 1 . . . . . . . . . . 1 Feedback Blocked . | . . . . . . . . . . . . . . . . . Robot Schematics Acquired . | . . . . . . . . . . . . . . . . . Robots Built . | . . . . . . . . . . . . . . . . . Authchips . | . . . . . . . . . . . . . . . . . Time . | . . . . . . . . . . . . . . . . . Total Robot Build Rating . | . . . . . . . . . . . . . . . . . Part Schematics Acquired 22 | . . . . 3 4 . 5 4 . . . 4 . . 2 . Parts Built 4 | . . . . . 4 . . . . . . . . . . . Authchips . | . . . . . . . . . . . . . . . . . Time 131 | . . . . . 131 . . . . . . . . . . . Total Part Build Rating 18 | . . . . . 18 . . . . . . . . . . . Parts Repaired 4 | . . . . . 1 . . 2 . . . . . . 1 . Time 252 | . . . . . 44 . . 122 . . . . . . 86 . Parts Recycled . | . . . . . . . . . . . . . . . . . Recycled Matter . | . . . . . . . . . . . . . . . . . Retrieved Matter . | . . . . . . . . . . . . . . . . . Retrieved Components 18 | . . . . . 2 . 5 7 . . . . . 4 . . Parts Scanalyzed 6 | . . . . 3 1 . . 2 . . . . . . . . Part Schematics Acquired 6 | . . . . 3 1 . . 2 . . . . . . . . Parts Damaged 2 | . . . . . 1 . . 1 . . . . . . . . Bothacking | -11 -10 -10 -9 -8 -7 -7 -7 -5 -4 -4 -4 -4 -3 -3 -3 -3 ------------ Run | Yrd Mat Min Mat Mat Fac Sto Rec Fac Fac Upp Upp Zhi Pro Res Qua Sec Used RIF Installer . | . . . . . . . . . . . . . . . . . Robots Hacked . | . . . . . . . . . . . . . . . . . Non-combat . | . . . . . . . . . . . . . . . . . Combat . | . . . . . . . . . . . . . . . . . Robot Hacks Applied . | . . . . . . . . . . . . . . . . . Relay Couplers Released . | . . . . . . . . . . . . . . . . . Fabnet Peak Effective % . | . . . . . . . . . . . . . . . . . Robots Rewired . | . . . . . . . . . . . . . . . . . Allies Hacked . | . . . . . . . . . . . . . . . . . Hacks Repelled . | . . . . . . . . . . . . . . . . . Allies | -11 -10 -10 -9 -8 -7 -7 -7 -5 -4 -4 -4 -4 -3 -3 -3 -3 -------- Run | Yrd Mat Min Mat Mat Fac Sto Rec Fac Fac Upp Upp Zhi Pro Res Qua Sec Total Allies 3 | . . . . . 2 . . . . . . . . 1 . . Largest Group 1 | . . . . . 1 . . . . . . . . 1 . . Highest-Rated Group 26 | . . . . . 26 . . . . . . . . 10 . . Highest-Rated Ally 26 | . . . . . 26 . . . . . . . . 10 . . Total Orders 2 | . . . . . 2 . . . . . . . . . . . STAY 1 | . . . . . 1 . . . . . . . . . . . FOLLOW 1 | . . . . . 1 . . . . . . . . . . . Ally Attacks . | . . . . . . . . . . . . . . . . . Total Damage . | . . . . . . . . . . . . . . . . . Kills . | . . . . . . . . . . . . . . . . . Allies Corrupted . | . . . . . . . . . . . . . . . . . Allies Melted . | . . . . . . . . . . . . . . . . . Intel | -11 -10 -10 -9 -8 -7 -7 -7 -5 -4 -4 -4 -4 -3 -3 -3 -3 ------- Run | Yrd Mat Min Mat Mat Fac Sto Rec Fac Fac Upp Upp Zhi Pro Res Qua Sec Active Infowar (turns) 7473 | 72 369 335 870 846 1120 83 493 440 252 256 165 117 567 472 365 651 Optics 5462 | . . . . 481 1120 83 493 440 252 256 165 117 567 472 365 651 Sensors 6068 | . . . 455 846 1120 83 346 423 252 256 165 100 567 472 365 618 IFF 190 | . . . . . . . . . . 5 165 20 . . . . Structural 4190 | . . . . . 761 41 148 419 252 256 165 117 567 472 361 631 Seismic 3876 | 72 369 335 869 846 456 42 2 435 252 198 . . . . . . Jamming 864 | . . . . . . . . . . . . 97 567 200 . . Robot Analysis Total 6 | . . . . . . . 1 . . . . 4 . . . 1 Derelict Logs Recovered 4 | . . 1 . . . . . . . 2 1 . . . . . Drone Launches . | . . . . . . . . . . . . . . . . . Drone Recoveries . | . . . . . . . . . . . . . . . . . Exploration | -11 -10 -10 -9 -8 -7 -7 -7 -5 -4 -4 -4 -4 -3 -3 -3 -3 ------------- Run | Yrd Mat Min Mat Mat Fac Sto Rec Fac Fac Upp Upp Zhi Pro Res Qua Sec Turns Passed 7728 | 164 369 335 1033 846 1120 83 493 440 252 256 165 117 567 472 365 651 Spaces Moved 13785 | 90 211 247 1107 1229 2501 162 998 1038 583 697 403 253 412 1120 1141 1593 Core 8 | 3 1 . . . . . . . . . . 1 . . . 3 Treads . | . . . . . . . . . . . . . . . . . Legs 825 | 87 210 247 281 . . . . . . . . . . . . . Wheels . | . . . . . . . . . . . . . . . . . Hover . | . . . . . . . . . . . . . . . . . Flight 12952 | . . . 826 1229 2501 162 998 1038 583 697 403 252 412 1120 1141 1590 Fastest Speed 15 | 50 120 120 34 29 23 29 29 26 24 21 28 28 28 18 15 15 Average Speed 32 | 124 121 120 57 32 28 29 38 26 27 27 28 29 28 24 18 17 Slowest Speed 400 | 190 200 120 190 34 29 29 94 30 28 28 28 400 30 28 23 50 Overloaded Moves 360 | . . . . . 5 . . . . 39 . . . 13 79 224 Propulsion Burnouts . | . . . . . . . . . . . . . . . . . Robots Hopped 75 | . . . 4 11 31 3 6 4 . . . . . 2 4 10 Potential Cave-ins 25 | . . . . . . . . 2 . . 5 . . . . 18 Cave-ins Triggered . | . . . . . . . . . . . . . . . . . Teleports 3 | . . . . . . . . . . . . . . . . 3 Exploration Rate (%) 53 | 5 32 49 65 77 51 46 92 24 13 84 57 61 57 28 89 79 Regions Visited 16 Branch Regions 9 Pre-discovered Areas 6 | . . 2 . 1 . . . . . . . 3 . . . . Known Exits Taken 13 | . . . 1 1 1 1 1 1 1 1 1 1 1 1 1 . Unknown Exits Taken 3 | 1 1 1 . . . . . . . . . . . . . . Scrap Searched 7 | . . . . . . . . . . 2 1 . 4 . . . Spaces Dug 328 | . 2 . 26 105 69 3 4 17 14 3 4 . 1 48 18 14 Terrain Destroyed 454 | . 2 . 27 162 69 3 4 19 14 3 52 . 16 48 18 17 Melee 207 | . . . 14 60 37 3 4 13 14 3 4 . 1 22 18 14 Projectile 11 | . 2 . . . . . . 6 . . . . . . . 3 AOE 236 | . . . 13 102 32 . . . . . 48 . 15 26 . . Terrain Rammed . | . . . . . . . . . . . . . . . . . Walls Destroyed . | . . . . . . . . . . . . . . . . . Machines Disabled . | . . . . . . . . . . . . . . . . . Actions | -11 -10 -10 -9 -8 -7 -7 -7 -5 -4 -4 -4 -4 -3 -3 -3 -3 --------- Run | Yrd Mat Min Mat Mat Fac Sto Rec Fac Fac Upp Upp Zhi Pro Res Qua Sec Total 15964 | 115 264 273 1323 1527 2744 186 1069 1166 640 743 442 283 858 1237 1237 1857 Wait 1287 | . 5 3 64 183 140 8 42 76 35 35 18 . 432 39 28 179 Move 13632 | 89 210 246 1098 1208 2445 155 988 1030 582 696 402 252 411 1115 1132 1573 Hop 62 | . . . 4 9 24 3 3 3 . . . . . 2 4 10 Pick Up 88 | 6 4 5 16 7 10 2 6 9 . . 3 2 . 8 5 5 Fast Attach 90 | 7 6 1 8 2 7 2 5 3 1 2 1 8 5 9 8 15 Attach 54 | . . . 11 5 2 . . 10 2 1 4 2 1 5 3 8 Detach 22 | . . 1 3 1 1 1 . 5 2 1 1 1 1 3 1 . Swap 79 | . 4 3 13 19 27 3 1 . 1 . . 2 . 4 2 . Drop 121 | . 4 6 18 11 16 6 7 8 1 . 4 9 5 9 13 4 Fire 116 | 13 31 8 20 10 3 . . 6 . . 4 . 2 1 1 17 Melee 392 | . . . 68 72 69 6 17 16 16 8 5 7 1 42 32 33 Ram . | . . . . . . . . . . . . . . . . . Kick . | . . . . . . . . . . . . . . . . . Crush . | . . . . . . . . . . . . . . . . . Escape Stasis 21 | . . . . . . . . . . . . . . . 8 13 Rewire . | . . . . . . . . . . . . . . . . . Trap . | . . . . . . . . . . . . . . . . . Miscellaneous . | . . . . . . . . . . . . . . . . . Route ------- -11/Scrapyard -10/Materials (discovered 2 exits: *Mat / [*Min]) -10/Mines -9/Materials (discovered 2 exits: *Mat / [*Min]) -8/Materials (discovered 3 exits: *Fac x3) -7/Factory (discovered 7 exits: *Fac x4 / *Sto x2 / *Low) -7/Storage -7/Recycling -5/Factory -4/Factory (discovered 2 exits: *Res / *Upp) -4/Upper Caves -4/Upper Caves (discovered 2 exits: *Res / *Zhi) -4/Zhirov -3/Proximity Caves -3/Research (discovered 4 exits: *Res / Arm / *Qua x2) -3/Quarantine (discovered 3 exits: *Res / *Sec / *Frg) -3/Section 7 (discovered 1 exit: *Res) History --------- Turn | Location | Event 17 | -11/Scrapyard | Discovered new exit (range 15) 165 | -11/Scrapyard | Entered Materials 208 | -10/Materials | Discovered new exit (range 15) 332 | -10/Materials | Build established: Mutant 340 | -10/Materials | Discovered new exit (range 6) 534 | -10/Materials | Entered Mines 544 | -10/Mines | Met a Derelict bent on vengeance 545 | -10/Mines | Learned location of Storage (-7) 584 | -10/Mines | A weapon hastily lodged in a ceiling crevice suddenly fell to the ground 833 | -10/Mines | Discovered new exit (range 15) 869 | -10/Mines | Entered Materials 869 | -9/Materials | Evolved 2 slots: Propulsion x1, Utility x1 1315 | -9/Materials | Lost 3 parts (1p1n1u) 1670 | -9/Materials | Discovered new exit (range 6) 1865 | -9/Materials | Discovered new exit (range 12) 1902 | -9/Materials | Identified exit to Materials 1902 | -9/Materials | Entered another Materials area 1902 | -8/Materials | Evolved 2 slots: Utility x2 2213 | -8/Materials | Build established: Hacker-Mutant 2549 | -8/Materials | Discovered new exit (range 19) 2561 | -8/Materials | Build established: Scout 2739 | -8/Materials | Identified exit to Factory 2748 | -8/Materials | Entered Factory 2748 | -7/Factory | Evolved 2 slots: Utility x2 2797 | -7/Factory | Discovered new exit (range 4) 2802 | -7/Factory | Identified exit to Storage 2979 | -7/Factory | Identified exit to Factory 3043 | -7/Factory | Build established: Hacker-Scout 3169 | -7/Factory | Fabricated Spear? 3169 | -7/Factory | Discovered new exit (range 19) 3174 | -7/Factory | Identified exit to Lower Caves 3182 | -7/Factory | Hacking Suite fried by hacking feedback 3414 | -7/Factory | Repaired Broken Imp. Cesium-ion Thruster 3653 | -7/Factory | Discovered exit to Storage (range 20) 3721 | -7/Factory | Fabricated Enh. Optical Array? 3868 | -7/Factory | Entered Storage 3950 | -7/Storage | Used back door to open Recycling access 3950 | -7/Storage | Discovered new exit (range 5) 3951 | -7/Storage | Identified exit to Recycling 3951 | -7/Storage | Entered Recycling 3979 | -7/Recycling | Discovered new exit (range 17) 4411 | -7/Recycling | Identified exit to Factory 4444 | -7/Recycling | Entered Factory 4444 | -5/Factory | Evolved 4 slots: Power x1, Propulsion x1, Utility x2 4513 | -5/Factory | Repaired Greatsword? 4787 | -5/Factory | Repaired Broken Imp. Transmission Jammer 4872 | -5/Factory | Discovered new exit (range 12) 4876 | -5/Factory | Identified exit to Factory 4884 | -5/Factory | Entered another Factory area 4884 | -4/Factory | Evolved 2 slots: Propulsion x2 4917 | -4/Factory | Discovered new exit (range 4) 4918 | -4/Factory | Identified exit to Research 5128 | -4/Factory | Discovered new exit (range 7) 5130 | -4/Factory | Identified exit to Upper Caves 5136 | -4/Factory | Entered Upper Caves 5192 | -4/Upper Caves | Spotted B-86 Titan 5193 | -4/Upper Caves | Identified exit to Upper Caves 5194 | -4/Upper Caves | Learned location of 1 exit from Upper Caves 5384 | -4/Upper Caves | Found DCF Scrap (14 items) 5392 | -4/Upper Caves | Entered another Upper Caves area 5393 | -4/Upper Caves | Identified exit to Zhirov 5409 | -4/Upper Caves | Discovered exit to Research (range 15) 5440 | -4/Upper Caves | Learned Research emergency access door positions 5557 | -4/Upper Caves | Entered Zhirov 5557 | -4/Zhirov | Discovered new exit (range 4) 5563 | -4/Zhirov | Met Zhirov 5570 | -4/Zhirov | Found Alien Artifact 5570 | -4/Zhirov | Identified Integrated Dissipator 5570 | -4/Zhirov | Installed Integrated Dissipator, increased core heat dissipation (+20) 5579 | -4/Zhirov | Found Alien Artifact 5615 | -4/Zhirov | Learned location of Quarantine (-3) 5615 | -4/Zhirov | Learned location of Testing (-2) 5615 | -4/Zhirov | Learned location of Command (-1) 5618 | -4/Zhirov | Zhirov requested help retrieving the SGEMP Prototype 5674 | -4/Zhirov | Identified exit to Proximity Caves 5674 | -4/Zhirov | Entered Proximity Caves 5685 | -3/Proximity Caves | Spotted B-86 Titan 5853 | -3/Proximity Caves | Build established: Hacker-Ninja 5916 | -3/Proximity Caves | Received a Behemoth hack from an annoying Tinkerer 6237 | -3/Proximity Caves | Discovered exit to Research (range 14) 6241 | -3/Proximity Caves | Entered Research 6241 | -3/Research | Evolved 2 slots: Propulsion x1, Utility x1 6352 | -3/Research | Found Gamma Bomb Array 6403 | -3/Research | Found Fusion Bomb Launcher 6494 | -3/Research | Lost 3 parts (2u1w) 6589 | -3/Research | Discovered new exit (range 9) 6591 | -3/Research | Identified exit to Research 6620 | -3/Research | Identified exit to Armory 6620 | -3/Research | Identified exit to Quarantine 6713 | -3/Research | Entered Quarantine 6718 | -3/Quarantine | Found Alien Artifact 6718 | -3/Quarantine | Identified Phase Armor 6743 | -3/Quarantine | Build established: Hacker-Scout 6744 | -3/Quarantine | Found Alien Artifact 6744 | -3/Quarantine | Identified Phase Redirector 6832 | -3/Quarantine | Found Alien Energy Cannon 6844 | -3/Quarantine | Spotted Alpha 7 6865 | -3/Quarantine | Repaired Broken Field Propulsion Array? 6905 | -3/Quarantine | Found Alien Slashing Weapon 6905 | -3/Quarantine | Identified Sigix Broadsword 6966 | -3/Quarantine | Cryocooling Duct disabled 6981 | -3/Quarantine | Ambient heat levels rising (+20) 6981 | -3/Quarantine | Non-combat units ordered to evacuate 6986 | -3/Quarantine | Found Alien Artifact 7055 | -3/Quarantine | Spotted Fortress 7067 | -3/Quarantine | Discovered new exit (range 5) 7067 | -3/Quarantine | Discovered new exit (range 6) 7068 | -3/Quarantine | Identified exit to Protoforge 7068 | -3/Quarantine | Identified exit to Section 7 7078 | -3/Quarantine | Entered Section 7 7083 | -3/Section 7 | Found Alien Artifact 7083 | -3/Section 7 | Identified Integrity Redistributor 7083 | -3/Section 7 | Used Integrity Redistributor, redistributed integrity from core (-21) 7112 | -3/Section 7 | Adv. System Shield fried by hacking feedback 7130 | -3/Section 7 | Found Alien Artifact 7130 | -3/Section 7 | Identified Integrated Reactor 7130 | -3/Section 7 | Installed Integrated Reactor, increased core energy generation (+10) 7158 | -3/Section 7 | Found Alien Artifact 7158 | -3/Section 7 | Identified Integrated Mediator 7158 | -3/Section 7 | Installed Integrated Mediator, increased core attachment efficiency 7190 | -3/Section 7 | Found Integrated Mediator 7190 | -3/Section 7 | Installed Integrated Mediator, increased core attachment efficiency 7201 | -3/Section 7 | Discovered exit to Research (range 4) 7234 | -3/Section 7 | Identified Transdimensional Reconstructor 7234 | -3/Section 7 | Warped through subspace 7274 | -3/Section 7 | Spotted Executioner 7274 | -3/Section 7 | Spotted Executioner 7282 | -3/Section 7 | Spotted B-99 Colossus 7301 | -3/Section 7 | Found Alien Artifact 7311 | -3/Section 7 | Found Alien Artifact 7311 | -3/Section 7 | Identified Core Expander 7311 | -3/Section 7 | Installed Core Expander, added new Power slot 7313 | -3/Section 7 | Found Core Expander 7313 | -3/Section 7 | Installed Core Expander, added new Utility slot 7315 | -3/Section 7 | Found Core Expander 7315 | -3/Section 7 | Installed Core Expander, added new Propulsion slot 7323 | -3/Section 7 | Found Alien Artifact 7323 | -3/Section 7 | Identified LRC Matter Compressor 7323 | -3/Section 7 | Installed LRC Matter Compressor, increased matter storage capacity (+125) 7324 | -3/Section 7 | Identified LRC Storage 7324 | -3/Section 7 | Installed LRC Storage, increased inventory capacity (+2) 7328 | -3/Section 7 | Search patrols dispatched 7501 | -3/Section 7 | Spotted Executioner 7505 | -3/Section 7 | Spotted Executioner 7507 | -3/Section 7 | Spotted Striker 7508 | -3/Section 7 | Spotted Striker 7519 | -3/Section 7 | Found Alien Artifact 7522 | -3/Section 7 | Found Alien Artifact 7523 | -3/Section 7 | Found Transdimensional Reconstructor 7534 | -3/Section 7 | Identified Terrabomb 7534 | -3/Section 7 | Used Terrabomb 7540 | -3/Section 7 | Found Alien Energy Gun 7540 | -3/Section 7 | Identified Sigix Sheargun 7542 | -3/Section 7 | Found Sigix Sheargun 7685 | -3/Section 7 | Found Terrabomb 7696 | -3/Section 7 | Warped through subspace 7696 | -3/Section 7 | Spotted Alpha 7 7697 | -3/Section 7 | Identified Hpw. Transdimensional Reconstructor 7697 | -3/Section 7 | Warped through subspace 7701 | -3/Section 7 | Scanned by Researcher 7702 | -3/Section 7 | Intercept squad dispatched 7705 | -3/Section 7 | Spotted Tracker 7712 | -3/Section 7 | Spotted Combat Programmer 7713 | -3/Section 7 | Spotted Tracker 7715 | -3/Section 7 | Used Terrabomb 7715 | -3/Section 7 | Spotted Combat Programmer 7716 | -3/Section 7 | Identified Core Cannon 7718 | -3/Section 7 | System corruption reached 10% 7719 | -3/Section 7 | Core integrity fell below 50% 7721 | -3/Section 7 | Identified Subatomic Replicator 7727 | -3/Section 7 | Core integrity fell below 20% 7729 | -3/Section 7 | Destroyed by H-77 Assassin with Coil Gun Last Messages --------------- 07722_ Penetrated by Slug. 07723_ U-05 Engineer builds a Wall. 07723_ Imp. Diametric Drive destroyed. 07724_ Penetrated by EMDS Slug. 07724_ U-05 Engineer builds a Wall. 07725_ Cld. VTOL Module destroyed. 07725_ Penetrated by EMDS Slug. 07725_ Imp. Diametric Drive destroyed. 07725_ Imp. System Shield destroyed. 07726_ Penetrated by Slug. 07726_ Slug penetrates Machine. 07726_ Held in stasis. 07726_ C-55 Analyst is analyzing... 07726_ U-05 Engineer builds a Wall. 07727_ Penetrated by EMDS Slug. 07727_ U-05 Engineer builds a Wall. 07728_ W-44 Eye sends out distress signal. 07728_ Hacking Suite destroyed. 07728_ Penetrated by Slug. 07728_ Penetrated by EMDS Slug. Map ----- +----------------------------------------------------+ | ?????????## """ + ##?## "" ############ | | ?????????## """ # ##?## " """ ############ | | ?????????## #^# ### " " " + | | ?????????## # ; " " """ # | | ?????????## # ; ; ## ######### | | ?????????########+###### ; ;;;;#######+# # | | ##############" ; ; [ # # | | # ###########;; ##### ; ; # < # | | # ; ##### ; ; / + | | # """" + ;###"+;;;;; """"""" ; # "" | | # ""S"" ; ;; ; """"""" ; # "" | | # ? "" "" ; ;; """ ; """"""" ; # "" | | ???? ; ;; """ ; ;p # | | #? ; ;; """ ;;;;;;;;;;;;; g #### | | ########;;;;;;; ;; """ ! ; ;;;;;;;;g # | | ########;;;;;;; ;; """ ; ; g + | | ## ; ;; """ ; ; # | | ## ; ;; """ ; ; # | | ## ; ;; ; ; # "" | | ## "" """ "" ; ;;;;;;;;;;;;;;;; ;;;;;;;# "" | | ## "" " " "" ; ;; ; # ?" | | ## """ /p s ;; ; # ? | | + """ "" ; s !$ ;; + ;#?# | | ## " " " " ; c $%$ ;; ; ##?# | | ## """ """ ;;;; ;;;;;;$ ;; ;""" ##?? | | ## ; ; ; @ ; ;; ;""" ##?? | | ## ; ; ; ; ;;;; ;;""" ##?? | | ## ; ; ; ;h ; ; ;;""" ##?? | | #######;+;;;;+; ; ; ; ; ; ;;""" ##?? | | ###### ;; ; ; ; ; ; ; ;;""" ###? | | ###### ;; ; ; ; ; h ; ; ;;""" ###? | | /% Y ; ; ; ; ; ; ;; uu "##? | | ###### ;; ; ; ;;;;;;; ; ; ;;########## | | ###### ;; ; ; ; ; R;;;; ;;;######### | | ????####+#;;; ; ; ;"" ; u | | ???? ; ; ; ;"" ; | | ??????? ; ; ; ;"" ; R | | ??????? # ; ; ;T ; | | ### # ; ; ;"" ; k;;;;;;########### | | #############+##;; ;"" ; u# ############# | | # # ;"" ; # ###???????????? | | "" # A # # ; w###?????????????? | | "" # # + # ##??????????????? | | "" # # # # ##??????????????? | | + """ # # g#b ?????????????? | | # "" " # #####/# ??????????? | | # """" # ?? g ! ? + ????? | | # " " + ???? # ????? | | # " "" # ]]]?? "" + ????? | | ? # """" # ]] ?? "" # ????? | +----------------------------------------------------+ Best States ------------- Heat Dissipation 66 Energy Generation 46 Energy Capacity 350 Matter Stores 300 Matter Capacity 425 Sight Range 23 Robot Scan Range 16 Terrain Scan Density 10 Jamming Range 14 Power Amplification 30 Armor Coverage 150 Power Shielding 90 Evasion (%) 79 Recoil Reduction 2 Salvage Targeting 2 Offensive Hacking 30 Defensive Hacking 14 Item Schematics ----------------- Hacking Suite | -8/Materials | Scanalyzed Maul | -8/Materials | Scanalyzed Imp. Ion Engine | -8/Materials | Scanalyzed Adv. Cooling System | -7/Factory | Hacked Imp. Cesium-ion Thruster | -7/Factory | Scanalyzed Spear | -7/Factory | Hacked Enh. Optical Array | -7/Factory | Hacked Lgt. Armored Exoskeleton | -7/Recycling | Hacked Greatsword | -7/Recycling | Hacked Gatling Laser | -7/Recycling | Hacked Powered Armor | -7/Recycling | Hacked Lgt. Fission Core | -7/Recycling | Hacked Adv. Hacking Suite | -5/Factory | Hacked Nuclear Pulse Array | -5/Factory | Hacked Mic. Nuclear Core | -5/Factory | Scanalyzed Imp. Transmission Jammer | -5/Factory | Scanalyzed Assault Drone Bay | -4/Zhirov | Free Exp. Heat Sink | -4/Zhirov | Free Exp. Optical Array | -4/Zhirov | Free Imp. Arc Thrower | -4/Zhirov | Free Exp. Signal Interpreter | -3/Quarantine | Hacked Adv. Transmission Jammer | -3/Quarantine | Hacked Robot Schematics ------------------ None Fabricated ------------ Spear | x2 | -7/Factory Enh. Optical Array | x2 | -7/Factory Repaired ---------- Imp. Cesium-ion Thruster | 71% | -7/Factory | Broken Greatsword | 83% | -5/Factory Imp. Transmission Jammer | 99% | -5/Factory | Broken Field Propulsion Array | 33% | -3/Quarantine | Broken Alien Tech Used ----------------- Integrated Dissipator Phase Armor Phase Redirector Sigix Broadsword Integrity Redistributor Integrated Reactor Integrated Mediator Transdimensional Reconstructor Core Expander LRC Matter Compressor LRC Storage Terrabomb Sigix Sheargun High-powered Transdimensional Reconstructor Core Cannon Subatomic Replicator Achievements -------------- Artifact Hunter Nope Signature Confirmed Challenges ------------ None Game ------ Seed ArmoredGrapheneAccelerator Manual? 0 Play Time 03:50:15 Cumulative 220.3 hours Start 2025.08.04 @ 08:04:36 End 2025.08.04 @ 17:02:57 Sessions 7 Manual Loads 0 Difficulty Rogue Special Mode None Game No. 156 Rogue 156 Adventurer 0 Explorer 0 Win Type - Total 2 Types 2/0/0/0/0/0/0/0/0/0 Lore% 66 Gallery% 64 Achievement% 55 Wizard Run 0 Options --------- Layout 1 ASCII 0 Keyboard 0 Movement Mouse Keybinds 0 Fullscreen 1 Font 32/SmallcapsGlow Map View 50x35 Zoom Use 0% Tactical HUD 1 Map Filters NONE Filters NONE Steam 1 RUN: 5f3f7268-ee3a-439e-963b-cd19c8dcb9cc